[Event "XVIII La Palma-ch 2019"]
[Site "La Palma"]
[Date "2019.03.29"]
[Round "1.1"]
[White "Ros Octavio De Toledo, Eduardo"]
[Black "Rodriguez Martin, Miguel Angel"]
[Result "1-0"]
[ECO "A31"]
[WhiteElo "2061"]
[BlackElo "2026"]
[Annotator "NA RC"]
[PlyCount "57"]
[EventDate "2019.03.29"]
[EventType "swiss"]
[EventCountry "ESP"]
[SourceTitle "playchess.com"]
[Source "ChessBase"]
[SourceQuality "1"]
[TimeControl "5400+30"]

1. Nf3 {[%emt 0:00:00]} c5 {[%emt 0:00:00]} 2. c4 {[%emt 0:00:10]} Nc6 {[%emt 0:00:00]} 3. d4 {[%emt 0:00:43]} cxd4 {[%emt 0:00:26]} 4. Nxd4 {[%emt 0:00:11]} d6 {[%emt 0:01:17]} 5. Nc3 {[%emt 0:00:33]} Nf6 {[%emt 0:01:44]} 6. e4 {[%emt 0:00:59]} e6 {[%emt 0:05:17]} 7. Be2 {[%emt 0:01:33]} Be7 {[%emt 0:00:25]} 8. O-O {[%emt 0:00:21]} a6 {[%emt 0:00:56]} 9. Be3 {[%emt 0:01:05]} O-O {[%emt 0:02:18]} 10. Qd2 {[%emt 0:01:23]} Qc7 {[%emt 0:01:01]} 11. f3 {[%emt 0:01:40]} b6 {[%emt 0:01:16]} 12. Rac1 {[%emt 0:00:58]} Ne5 {[%emt 0:03:39]} 13. Rfd1 {[%emt 0:03:41]} Bb7 {[%emt 0:01:18]} 14. b3 {[%emt 0:05:31]} Rac8 {[%emt 0:00:22]} 15. Bf1 {[%emt 0:03:48]} Qb8 {[%emt 0:02:01]} 16. Qf2 {[%emt 0:12:05]} Ned7 {[%emt 0:01:48] A31: Symmetrical English: 2 Nf3 Nf6 3 d4} (16... Rfe8 $14) (16... Nfd7 17. Kh1 Bf6 18. Qg3 Ng6 19. Nde2 Be5 20. f4 Bf6 21. f5 Be5 22. Qh3 exf5 23. exf5 Ne7 24. Nd4 {1-0 (80) Mkrtchian,L (2400)-Dzagnidze,N (2482) Kishinev 2005}) 17. a4 $146 {[%emt 0:07:30]} ({Predecessor:} 17. g4 Ne5 18. g5 Nfd7 19. Bh3 Nc5 20. Qe2 Rfe8 21. Bg2 Ng6 22. Bh3 Rcd8 23. b4 Nd7 {0-1 (59) Matorin,E (2226)-Solomaha,A (2297) Kiev 2010}) 17... Bd8 {[%emt 0:02:05]} 18. b4 {[%emt 0:02:28]} ({Better is} 18. g4 $16) 18... Bc7 {[%emt 0:00:39]} (18... Ne5 $11) 19. h3 {[%emt 0:01:46]} d5 {[%emt 0:00:30]} 20. exd5 {[%emt 0:00:30]} exd5 {[%emt 0:00:30]} 21. cxd5 {[%emt 0:00:30]} Bg3 {[%emt 0:00:30]} 22. Qa2 {[%emt 0:00:30]} Rxc3 {[%emt 0:00:30]} 23. Rxc3 {[%emt 0:00:30]} Nxd5 {[%emt 0:00:30]} 24. Rb3 {[%emt 0:00:30]} Nxe3 {[%emt 0:00:30]} 25. Rxe3 $18 {[%emt 0:00:30]} Bf4 {[%emt 0:00:30]} 26. Ree1 {[%emt 0:00:30]} Qd8 {[%emt 0:00:30]} 27. Ne6 {[%emt 0:00:30]} Qh4 {[%emt 0:00:30]} 28. Nxf4 {[%emt 0:00:30]} Qxf4 {[%emt 0:00:30]} 29. Rxd7 {[%emt 0:00:30]} 1-0

[Event "XVIII La Palma-ch 2019"]
[Site "La Palma"]
[Date "2019.03.29"]
[Round "1.2"]
[White "Francisco Concepcion, Francisco"]
[Black "Guerra Arrocha, Daniel"]
[Result "0-1"]
[ECO "A24"]
[WhiteElo "1494"]
[BlackElo "2038"]
[Annotator "NA"]
[PlyCount "60"]
[EventDate "2019.03.29"]
[EventType "swiss"]
[EventCountry "ESP"]
[SourceTitle "playchess.com"]
[Source "ChessBase"]
[SourceQuality "1"]
[TimeControl "5400+30"]

1. Nf3 {[%emt 0:00:00]} Nf6 {[%emt 0:00:00]} 2. c4 {[%emt 0:00:01]} g6 {[%emt 0:00:03]} 3. Nc3 {[%emt 0:00:14]} Bg7 {[%emt 0:00:09]} 4. g3 {[%emt 0:00:37]} O-O {[%emt 0:00:08]} 5. Bg2 {[%emt 0:00:17]} d6 {[%emt 0:00:07]} 6. O-O {[%emt 0:02:05]} c6 {[%emt 0:00:26]} 7. Qc2 {[%emt 0:00:43]} e5 {[%emt 0:00:41]} 8. d3 {[%emt 0:01:11]} Bg4 {[%emt 0:00:34]} 9. Ne1 {[%emt 0:04:12]} Qd7 {[%emt 0:00:18]} 10. f3 {[%emt 0:02:37]} Bh3 {[%emt 0:00:32]} 11. e3 {[%emt 0:00:04]} d5 {[%emt 0:00:17]} 12. Rf2 {[%emt 0:09:26]} Bxg2 {[%emt 0:01:14]} 13. Rxg2 {[%emt 0:00:47]} b5 {[%emt 0:00:16]} 14. cxb5 {[%emt 0:06:01]} cxb5 {[%emt 0:00:17]} 15. Qb3 {[%emt 0:00:41]} a6 {[%emt 0:00:29]} 16. a4 {[%emt 0:03:32]} d4 {[%emt 0:00:10]} 17. Ne2 {[%emt 0:00:21]} bxa4 {[%emt 0:00:20]} 18. Rxa4 {[%emt 0:01:58]} Nc6 {[%emt 0:00:08]} 19. exd4 {[%emt 0:05:39]} Nxd4 {[%emt 0:00:26]} 20. Nxd4 {[%emt 0:00:18]} exd4 {[%emt 0:00:05]} 21. Qa2 {[%emt 0:06:49]} Nd5 {[%emt 0:01:32]} 22. Bd2 {[%emt 0:07:50]} Qb7 {[%emt 0:00:18]} 23. Re2 {[%emt 0:02:25]} Rfb8 {[%emt 0:00:06]} 24. Bc1 {[%emt 0:01:15]} Re8 {[%emt 0:02:26]} 25. Rxe8+ {[%emt 0:07:46]} Rxe8 {[%emt 0:01:01]} 26. Kf2 {[%emt 0:00:43]} Qe7 {[%emt 0:00:07]} 27. Qxd5 {[%emt 0:04:02]} Qxe1+ {[%emt 0:00:11]} 28. Kg2 {[%emt 0:00:11]} Qxc1 {[%emt 0:00:11]} 29. Rxa6 {[%emt 0:01:17]} Qc2+ {[%emt 0:00:32]} 30. Kh3 {[%emt 0:00:25]} Qc8+ {[%emt 0:00:11]} 0-1

[Event "XVIII La Palma-ch 2019"]
[Site "La Palma"]
[Date "2019.03.29"]
[Round "1.3"]
[White "Rodriguez Miranda, Sergio"]
[Black "Iglesias Dominguez, Jacinto"]
[Result "1-0"]
[ECO "A40"]
[WhiteElo "1957"]
[BlackElo "1441"]
[Annotator "NA"]
[PlyCount "127"]
[EventDate "2019.03.29"]
[EventType "swiss"]
[EventCountry "ESP"]
[SourceTitle "playchess.com"]
[Source "ChessBase"]
[SourceQuality "1"]
[TimeControl "5400+30"]

1. d4 {[%emt 0:00:00]} c5 {[%emt 0:00:00]} 2. c4 {[%emt 0:00:41]} e6 {[%emt 0:00:02]} 3. Nc3 {[%emt 0:00:12]} (3. d5 exd5 4. cxd5 d6 5. Nc3 a6 6. a4 g6 7. Nf3 Bg7 8. Nd2 Nd7 9. e4 Nh6 10. Nc4 Nb6 11. Ne3 f5 12. a5 Nd7 13. exf5 O-O 14. fxg6 hxg6 {0-1 (58) Kryakvin,D (2588)-Ponkratov,P (2630) Khanty-Mansiysk 2018}) 3... cxd4 {[%emt 0:01:06]} 4. Qxd4 {[%emt 0:00:25]} Nc6 {[%emt 0:01:06]} 5. Qd1 {[%emt 0:00:08]} Nf6 {[%emt 0:00:47]} 6. g3 {[%emt 0:00:13] A40: Unusual replies to 1 d4} Bb4 {[%emt 0:00:30]} 7. Bd2 {[%emt 0:01:16]} d5 {[%emt 0:01:08]} 8. cxd5 {[%emt 0:01:23]} exd5 $146 {[%emt 0:00:30]} ({Predecessor:} 8... Nxd5 9. Nxd5 Qxd5 10. Nf3 Bxd2+ 11. Qxd2 Qxd2+ 12. Nxd2 {½-½ (38) Hamzagic,A (2091)-Gapa,A Neum 2012}) 9. Bg2 {[%emt 0:00:32]} O-O {[%emt 0:00:46]} 10. Nf3 {[%emt 0:00:42]} Re8 {[%emt 0:00:23]} 11. O-O {[%emt 0:00:23]} h6 {[%emt 0:00:55]} 12. a3 {[%emt 0:03:15]} Bc5 {[%emt 0:01:09]} 13. Rc1 {[%emt 0:05:34]} Bg4 {[%emt 0:02:15]} 14. b4 {[%emt 0:07:11]} Bb6 {[%emt 0:01:21]} 15. Na4 {[%emt 0:00:53]} Ne4 {[%emt 0:01:46]} 16. Nxb6 {[%emt 0:14:10]} axb6 {[%emt 0:00:27]} 17. Ra1 {[%emt 0:04:19]} b5 {[%emt 0:05:55]} 18. h3 {[%emt 0:05:18]} Bh5 {[%emt 0:00:20]} 19. g4 {[%emt 0:11:04]} Bg6 {[%emt 0:00:14]} 20. e3 {[%emt 0:13:15]} Qe7 {[%emt 0:04:33]} 21. Be1 {[%emt 0:02:33]} Qf6 {[%emt 0:00:48]} 22. Ra2 {[%emt 0:01:55]} Red8 {[%emt 0:00:43]} 23. Qb3 {[%emt 0:05:02]} d4 {[%emt 0:02:21]} 24. exd4 {[%emt 0:04:33]} Nxd4 {[%emt 0:00:23]} 25. Nxd4 {[%emt 0:01:09]} Qxd4 {[%emt 0:00:24]} 26. Re2 {[%emt 0:01:04]} Nd6 {[%emt 0:02:42]} 27. Bc3 {[%emt 0:00:44]} Qc4 {[%emt 0:00:14]} 28. Qb2 {[%emt 0:00:33]} f6 {[%emt 0:02:00]} 29. Rfe1 {[%emt 0:00:11]} Bf7 {[%emt 0:00:51]} 30. Rd2 {[%emt 0:02:58]} Qc7 {[%emt 0:01:11]} 31. Qc1 {[%emt 0:05:15]} Nc4 {[%emt 0:00:09]} 32. Rxd8+ {[%emt 0:00:08]} Qxd8 {[%emt 0:01:13]} 33. Bb2 {[%emt 0:07:50]} Nxb2 {[%emt 0:00:58]} 34. Qxb2 {[%emt 0:00:03]} Qd3 {[%emt 0:00:31]} 35. Re3 {[%emt 0:00:16]} Qd1+ {[%emt 0:00:36]} 36. Kh2 {[%emt 0:00:35]} Rd8 {[%emt 0:00:39]} 37. Qc3 {[%emt 0:00:48]} Bc4 {[%emt 0:00:24]} 38. Re1 {[%emt 0:01:44]} Qd6+ {[%emt 0:00:58]} 39. Qg3 {[%emt 0:00:16]} Qxg3+ {[%emt 0:01:58]} 40. Kxg3 {[%emt 0:00:04]} Kf7 {[%emt 0:00:34]} 41. Bxb7 {[%emt 0:00:10]} Rd3+ {[%emt 0:00:49]} 42. Re3 {[%emt 0:00:05]} Rxe3+ {[%emt 0:01:06]} 43. fxe3 {[%emt 0:00:03]} Ke6 {[%emt 0:00:18]} 44. Kf4 {[%emt 0:02:16]} Bb3 {[%emt 0:00:10]} 45. Bc6 {[%emt 0:00:36]} Bc4 {[%emt 0:00:13]} 46. Bb7 {[%emt 0:00:34]} Bb3 {[%emt 0:00:15]} 47. Ba6 {[%emt 0:00:29]} Ba4 {[%emt 0:00:03]} 48. Ke4 {[%emt 0:00:32]} g6 {[%emt 0:00:29]} 49. Kd4 {[%emt 0:00:23]} Kd6 {[%emt 0:00:10]} 50. Bb7 {[%emt 0:00:07]} f5 {[%emt 0:00:58]} 51. gxf5 $18 {[%emt 0:00:57]} gxf5 {[%emt 0:00:01]} 52. h4 {[%emt 0:00:17]} Bc2 {[%emt 0:01:17]} 53. Bf3 {[%emt 0:00:13]} Ba4 {[%emt 0:00:50]} 54. Be2 {[%emt 0:00:24]} Ke6 {[%emt 0:00:46]} 55. Bd3 {[%emt 0:00:22]} Kf6 {[%emt 0:00:37]} 56. Kd5 {[%emt 0:00:08]} Bb3+ {[%emt 0:01:27]} 57. Kc5 {[%emt 0:01:19]} Ba4 {[%emt 0:00:02]} 58. Kd6 {[%emt 0:00:14]} f4 {[%emt 0:01:48]} 59. exf4 {[%emt 0:00:19]} Bb3 {[%emt 0:00:38]} 60. Bxb5 {[%emt 0:00:26]} Kf5 {[%emt 0:00:01]} 61. a4 {[%emt 0:00:13]} Kxf4 {[%emt 0:00:09]} 62. a5 {[%emt 0:00:03]} Ke4 {[%emt 0:02:21]} 63. a6 {[%emt 0:00:08]} Bd5 {[%emt 0:00:52]} 64. Bc6 {[%emt 0:00:26]} 1-0

[Event "XVIII La Palma-ch 2019"]
[Site "La Palma"]
[Date "2019.03.29"]
[Round "1.4"]
[White "Sanchez Hernandez, Jorge Vicente"]
[Black "Haertl, Siegfried"]
[Result "0-1"]
[ECO "A13"]
[WhiteElo "1384"]
[BlackElo "1945"]
[Annotator "NA"]
[PlyCount "88"]
[EventDate "2019.03.29"]
[EventType "swiss"]
[EventCountry "ESP"]
[SourceTitle "playchess.com"]
[Source "ChessBase"]
[SourceQuality "1"]
[TimeControl "5400+30"]

1. c4 {[%emt 0:00:11]} e6 {[%emt 0:00:00]} 2. g3 {[%emt 0:00:33]} Nf6 {[%emt 0:00:26]} 3. Bg2 {[%emt 0:00:28]} d5 {[%emt 0:00:23]} 4. cxd5 {[%emt 0:01:30]} exd5 {[%emt 0:00:10]} 5. d3 {[%emt 0:00:40]} Bb4+ {[%emt 0:03:17]} 6. Bd2 {[%emt 0:00:29]} Be7 {[%emt 0:00:30]} 7. Nf3 {[%emt 0:00:46]} O-O {[%emt 0:00:22]} 8. O-O {[%emt 0:00:06]} c5 {[%emt 0:01:37]} 9. Nc3 {[%emt 0:03:38]} Nc6 {[%emt 0:00:24]} 10. a3 {[%emt 0:01:03]} Re8 {[%emt 0:01:46]} 11. Re1 {[%emt 0:02:29]} Bg4 {[%emt 0:01:16]} 12. Qc2 {[%emt 0:04:52]} Bxf3 {[%emt 0:02:43]} 13. Bxf3 {[%emt 0:00:21]} Nd4 {[%emt 0:01:00]} 14. Qd1 {[%emt 0:01:14]} Nxf3+ {[%emt 0:00:04]} 15. exf3 {[%emt 0:00:15]} Qd7 {[%emt 0:02:55]} 16. Kg2 {[%emt 0:07:15]} h6 {[%emt 0:01:51]} 17. Ne2 {[%emt 0:03:31]} d4 {[%emt 0:03:32]} 18. Nf4 {[%emt 0:01:19]} Bf8 {[%emt 0:03:40]} 19. Qb3 {[%emt 0:01:43]} b5 {[%emt 0:02:00]} 20. h4 {[%emt 0:16:10]} Rac8 {[%emt 0:02:16]} 21. Rxe8 {[%emt 0:02:05]} Rxe8 {[%emt 0:00:39]} 22. Re1 {[%emt 0:06:37]} Rxe1 {[%emt 0:01:46]} 23. Bxe1 {[%emt 0:00:09]} Qc6 {[%emt 0:00:18]} 24. Qd1 {[%emt 0:01:41]} Nd5 {[%emt 0:02:24]} 25. Nxd5 {[%emt 0:00:38]} Qxd5 {[%emt 0:00:08]} 26. Qc2 {[%emt 0:00:52]} c4 {[%emt 0:00:44]} 27. dxc4 {[%emt 0:00:56]} bxc4 {[%emt 0:00:10]} 28. Bd2 {[%emt 0:00:48]} Bc5 {[%emt 0:02:48]} 29. Qe4 {[%emt 0:00:50]} Qd7 {[%emt 0:03:55]} 30. Qg4 {[%emt 0:08:30]} Qxg4 {[%emt 0:01:59]} 31. fxg4 {[%emt 0:00:08]} Kf8 {[%emt 0:02:08]} 32. f4 {[%emt 0:00:15]} Ke7 {[%emt 0:00:09]} 33. Kf3 {[%emt 0:00:18]} Kd6 {[%emt 0:00:03]} 34. Ke4 {[%emt 0:00:21]} d3 {[%emt 0:01:14]} 35. h5 {[%emt 0:00:52]} Bf2 {[%emt 0:00:47]} 36. Kf3 {[%emt 0:01:20]} Bd4 {[%emt 0:00:13]} 37. Bc3 {[%emt 0:01:09]} Bxc3 {[%emt 0:01:24]} 38. bxc3 {[%emt 0:00:06]} Ke6 {[%emt 0:01:04]} 39. Ke3 {[%emt 0:00:29]} f6 {[%emt 0:00:55]} 40. a4 {[%emt 0:00:52]} Kd5 {[%emt 0:01:44]} 41. g5 {[%emt 0:03:38]} fxg5 {[%emt 0:01:46]} 42. fxg5 {[%emt 0:00:10]} hxg5 {[%emt 0:00:06]} 43. g4 {[%emt 0:00:12]} Kc5 {[%emt 0:01:16]} 44. Kd2 {[%emt 0:00:43]} Kb6 {[%emt 0:00:23]} 0-1

[Event "XVIII La Palma-ch 2019"]
[Site "La Palma"]
[Date "2019.03.30"]
[Round "2.1"]
[White "Rodriguez Bittar, Karim Javier"]
[Black "Ros Octavio De Toledo, Eduardo"]
[Result "1/2-1/2"]
[ECO "A46"]
[WhiteElo "1940"]
[BlackElo "2061"]
[Annotator "NA"]
[PlyCount "45"]
[EventDate "2019.03.29"]
[EventType "swiss"]
[EventCountry "ESP"]
[SourceTitle "playchess.com"]
[Source "ChessBase"]
[SourceQuality "1"]
[TimeControl "5400+30"]

1. d4 {[%emt 0:00:00]} Nf6 {[%emt 0:00:00]} 2. Nf3 {[%emt 0:01:23]} e6 {[%emt 0:01:10]} 3. g3 {[%emt 0:01:47]} c5 {[%emt 0:03:37]} 4. Bg2 {[%emt 0:13:13]} Nc6 {[%emt 0:00:56]} 5. O-O {[%emt 0:01:30]} Qb6 {[%emt 0:00:44]} 6. dxc5 {[%emt 0:01:37]} Bxc5 {[%emt 0:00:43]} 7. Nc3 {[%emt 0:01:21] A46: 1 d4 Nf6 2 Nf3 e6: Torre, London and Colle Systems} (7. c4 Ne4 8. e3 O-O 9. Ne1 d5 10. cxd5 exd5 11. Qxd5 Nf6 12. Qg5 Be6 13. Nc3 Be7 14. Qf4 Rfd8 15. b3 {0-1 (41) Adly,A (2630)-Amin,B (2578) Egypt 2010}) 7... Be7 {[%emt 0:02:58]} 8. e4 {[%emt 0:01:46]} d6 {[%emt 0:01:33]} 9. Re1 {[%emt 0:11:43]} ({Predecessor:} 9. Qe2 O-O 10. Rd1 Bd7 11. a3 Rfd8 12. Be3 Qc7 13. Nb5 Qb8 14. Bf4 Ne5 {½-½ (80) Balog,I (2525)-Rigo,Z (2379) Slovakia 2015}) 9... O-O {[%emt 0:00:47]} 10. b3 {[%emt 0:05:34]} a6 {[%emt 0:08:39]} 11. Na4 {[%emt 0:03:36]} Qc7 {[%emt 0:01:26]} 12. c4 {[%emt 0:03:20]} b5 {[%emt 0:05:03]} 13. Nb2 {[%emt 0:06:13]} Bb7 {[%emt 0:04:17]} 14. Bf4 {[%emt 0:01:17]} Rfd8 {[%emt 0:02:53]} 15. Qe2 {[%emt 0:02:23]} Qa5 {[%emt 0:10:26]} 16. Bd2 {[%emt 0:05:52]} Qa3 {[%emt 0:11:41]} 17. Bc1 {[%emt 0:09:50]} Qa5 {[%emt 0:05:38]} 18. Bd2 {[%emt 0:00:10]} Qa3 {[%emt 0:04:50]} 19. Bc1 {[%emt 0:01:09]} Qa5 {[%emt 0:00:26]} 20. Bd2 $11 {[%emt 0:00:06]} Qb6 {[%emt 0:01:09]} 21. Be3 {[%emt 0:00:33]} Qa5 {[%emt 0:00:16]} 22. Bd2 {[%emt 0:00:06]} Qa3 {[%emt 0:04:30]} 23. Bc1 {[%emt 0:00:08]} 1/2-1/2

[Event "XVIII La Palma-ch 2019"]
[Site "La Palma"]
[Date "2019.03.30"]
[Round "2.2"]
[White "Guerra Arrocha, Daniel"]
[Black "Lopez Rodriguez, Hector"]
[Result "1-0"]
[ECO "C07"]
[WhiteElo "2038"]
[BlackElo "2212"]
[Annotator "NA"]
[PlyCount "145"]
[EventDate "2019.03.29"]
[EventType "swiss"]
[EventCountry "ESP"]
[SourceTitle "playchess.com"]
[Source "ChessBase"]
[SourceQuality "1"]
[TimeControl "5400+30"]

1. e4 {[%emt 0:08:49]} e6 {[%emt 0:00:00]} 2. d4 {[%emt 0:00:16]} d5 {[%emt 0:00:00]} 3. Nd2 {[%emt 0:00:34]} c5 {[%emt 0:00:37]} 4. Ngf3 {[%emt 0:00:12]} Nf6 {[%emt 0:03:32]} 5. exd5 {[%emt 0:00:13]} Qxd5 {[%emt 0:03:46]} 6. Bc4 {[%emt 0:00:08]} Qd8 {[%emt 0:00:51]} 7. O-O {[%emt 0:00:08]} Nc6 {[%emt 0:02:28]} 8. Nb3 {[%emt 0:00:38]} cxd4 {[%emt 0:00:12]} 9. Nbxd4 {[%emt 0:00:06]} Nxd4 {[%emt 0:00:58]} 10. Nxd4 {[%emt 0:00:14]} a6 {[%emt 0:03:45]} 11. c3 {[%emt 0:02:10]} Bc5 {[%emt 0:07:42] C07: French Tarrasch: 3...c5, 4 Ngf3 and 4 exd5 Qxd5} (11... Be7 12. h3 Qc7 13. Bd3 O-O 14. Qf3 Rd8 15. Re1 Bd7 16. Bf4 Qb6 17. Rab1 Bc6 18. Nxc6 Qxc6 19. Qxc6 bxc6 {½-½ (74) Bykovskiy,O (2349)-Shalimov,V (2402) Omelnyk 2017}) 12. Be3 {[%emt 0:00:36]} O-O {[%emt 0:01:03]} 13. Qf3 {[%emt 0:01:33]} Qc7 {[%emt 0:02:00]} 14. Bd3 $146 {[%emt 0:01:35]} ({Predecessor:} 14. Bf4 e5 15. Bg3 Bxd4 16. cxd4 Qxc4 17. Bxe5 Qe6 18. Rfe1 Qg4 {0-1 (28) Afonso Martin,A (1673)-Cruz Diaz,F (1651) Tenerife 2016}) 14... Rb8 {[%emt 0:09:07]} 15. Bg5 {[%emt 0:04:16]} Be7 {[%emt 0:00:21]} 16. Rfe1 {[%emt 0:00:18]} b5 {[%emt 0:01:31] [#]} (16... Nd5 $11 {and Black stays safe.} 17. Bxe7 Nxe7) 17. Nc6 $1 {[%emt 0:01:37]} Bb7 {[%emt 0:05:54]} 18. Nxe7+ {[%emt 0:02:13]} Qxe7 {[%emt 0:00:05]} 19. Qg3 {[%emt 0:04:16]} Rbd8 {[%emt 0:11:59]} 20. Re3 {[%emt 0:00:17]} g6 {[%emt 0:15:51]} 21. Qh4 {[%emt 0:00:34]} Kg7 {[%emt 0:00:21]} 22. Qh6+ {[%emt 0:00:13]} Kg8 {[%emt 0:01:29]} 23. Qh4 {[%emt 0:01:46]} Kg7 {[%emt 0:00:11]} 24. Bh6+ {[%emt 0:00:21]} Kg8 {[%emt 0:00:07]} 25. Bxf8 {[%emt 0:00:05]} Kxf8 {[%emt 0:00:36]} 26. Be2 {[%emt 0:01:14]} Kg7 {[%emt 0:04:14]} 27. Bf3 {[%emt 0:00:16]} Bxf3 {[%emt 0:00:07]} 28. Rxf3 {[%emt 0:00:05]} Rd5 {[%emt 0:00:05]} 29. h3 {[%emt 0:01:16]} Rh5 {[%emt 0:00:43]} (29... g5 $16 {might work better.} 30. Qg3 Nh5) 30. Qd4 {[%emt 0:00:13]} Rd5 {[%emt 0:00:20]} 31. Qe3 {[%emt 0:00:48]} Qd6 {[%emt 0:00:46]} 32. Re1 {[%emt 0:00:56]} Rd2 {[%emt 0:00:38]} 33. Qg5 {[%emt 0:00:44]} Qd8 {[%emt 0:00:38]} 34. Rxf6 {[%emt 0:04:34]} h6 {[%emt 0:01:11]} 35. Rxg6+ {[%emt 0:00:15]} fxg6 {[%emt 0:00:19]} 36. Qxd8 {[%emt 0:00:04]} Rxd8 {[%emt 0:00:04]} 37. Rxe6 {[%emt 0:00:03]} Rd1+ {[%emt 0:00:10]} 38. Kh2 {[%emt 0:00:06]} Rd2 {[%emt 0:00:17]} 39. Rxa6 {[%emt 0:00:16]} Rxb2 {[%emt 0:00:14]} 40. f3 {[%emt 0:00:21]} Rc2 {[%emt 0:00:48]} 41. Ra3 {[%emt 0:00:05]} Kf6 {[%emt 0:00:23]} 42. Rb3 {[%emt 0:00:25]} Rxa2 {[%emt 0:01:07]} 43. Rxb5 {[%emt 0:00:04]} Rc2 {[%emt 0:00:09]} 44. Rc5 {[%emt 0:00:05]} h5 {[%emt 0:00:39]} 45. h4 {[%emt 0:00:04]} Ra2 {[%emt 0:02:34]} 46. Kh3 {[%emt 0:00:06]} Rf2 {[%emt 0:01:00]} 47. Rc6+ {[%emt 0:00:06]} Kf5 {[%emt 0:01:04]} 48. g4+ {[%emt 0:00:30]} hxg4+ {[%emt 0:00:13]} 49. fxg4+ {[%emt 0:00:04]} Ke5 {[%emt 0:00:14]} 50. h5 {[%emt 0:01:40]} gxh5 {[%emt 0:00:43]} 51. gxh5 {[%emt 0:00:07]} Rf1 {[%emt 0:01:48]} 52. Kh4 {[%emt 0:01:22]} Kf5 {[%emt 0:00:35]} 53. h6 {[%emt 0:00:23]} Rh1+ {[%emt 0:01:33]} 54. Kg3 {[%emt 0:00:04]} Rg1+ {[%emt 0:01:08]} 55. Kf3 {[%emt 0:00:06]} Rh1 {[%emt 0:00:36]} 56. Ke3 {[%emt 0:00:14]} Ke5 {[%emt 0:00:24]} 57. Rc5+ {[%emt 0:02:44]} Kd6 {[%emt 0:00:20] [#]} 58. Ra5 $1 {[%emt 0:00:37]} Kc6 {[%emt 0:00:24]} 59. Ra6+ {[%emt 0:01:06]} Kd5 {[%emt 0:00:18]} 60. Kf4 {[%emt 0:00:57]} Kc4 {[%emt 0:00:16]} 61. Rc6+ {[%emt 0:00:40]} Kd5 {[%emt 0:00:08]} 62. Rf6 {[%emt 0:00:22]} Rh3 {[%emt 0:02:32]} 63. Kg5 {[%emt 0:01:52]} Ke5 {[%emt 0:03:03]} 64. Rc6 {[%emt 0:00:49]} Rg3+ {[%emt 0:01:59]} 65. Kh5 {[%emt 0:00:05]} Kf5 {[%emt 0:00:32]} 66. Rc4 {[%emt 0:00:57]} Rh3+ {[%emt 0:03:24]} 67. Rh4 {[%emt 0:00:06]} Rg3 {[%emt 0:00:06]} 68. Rh1 $11 {[%emt 0:00:30]} Rg5+ {[%emt 0:00:31]} 69. Kh4 {[%emt 0:00:07]} Rg4+ {[%emt 0:00:05]} 70. Kh3 {[%emt 0:00:04]} Rg8 {[%emt 0:11:38]} 71. h7 {[%emt 0:00:20]} Rh8 {[%emt 0:00:06]} 72. Kg3 {[%emt 0:00:17]} Kg5 {[%emt 0:00:47]} 73. c4 {[%emt 0:00:09]} 1-0

[Event "XVIII La Palma-ch 2019"]
[Site "La Palma"]
[Date "2019.03.30"]
[Round "2.3"]
[White "Alonso Perez, Alfredo"]
[Black "Rodriguez Miranda, Sergio"]
[Result "1/2-1/2"]
[ECO "E81"]
[WhiteElo "1730"]
[BlackElo "1957"]
[Annotator "NA"]
[PlyCount "108"]
[EventDate "2019.03.29"]
[EventType "swiss"]
[EventCountry "ESP"]
[SourceTitle "playchess.com"]
[Source "ChessBase"]
[SourceQuality "1"]
[TimeControl "5400+30"]

1. d4 {[%emt 0:01:19]} Nf6 {[%emt 0:00:00]} 2. c4 {[%emt 0:00:27]} g6 {[%emt 0:00:16]} 3. Nc3 {[%emt 0:00:08]} Bg7 {[%emt 0:00:04]} 4. e4 {[%emt 0:00:06]} d6 {[%emt 0:00:03]} 5. f3 {[%emt 0:00:08]} O-O {[%emt 0:00:31]} 6. Be3 {[%emt 0:00:25]} a6 {[%emt 0:00:10]} 7. Nge2 {[%emt 0:00:13]} Nbd7 {[%emt 0:00:04]} 8. Qd2 {[%emt 0:03:36]} c5 {[%emt 0:06:45]} 9. Ng3 {[%emt 0:16:55]} (9. dxc5 $14 Nxc5 10. Rd1) 9... cxd4 {[%emt 0:13:35] LiveBook: 3 Games E81: King's Indian: Sämisch: 6th move deviations (including 6 Be3 c6)} 10. Bxd4 {[%emt 0:00:10]} Ne5 {[%emt 0:00:10]} 11. Be2 {[%emt 0:19:13]} Be6 {[%emt 0:00:12]} 12. b3 {[%emt 0:00:42]} (12. Nd5 b5 13. cxb5 axb5 14. Nxf6+ Bxf6 15. O-O Nc4 16. Bxc4 Bxd4+ 17. Qxd4 Bxc4 {½-½ (59) Latzke,B (2181)-Hirneise,J (2293) Stuttgart 2016}) 12... Nc6 $146 {[%emt 0:02:03]} ({Predecessor:} 12... Qa5 13. Rc1 Rac8 14. O-O Rfd8 15. Rc2 Nc6 16. Be3 Nd7 17. Na4 {1-0 (27) Muha,M (1862)-Maresic,J (1711) Mureck 2013}) 13. Be3 {[%emt 0:00:43]} Qa5 {[%emt 0:01:00]} 14. Rc1 {[%emt 0:03:35]} Rfd8 {[%emt 0:06:05]} 15. Nd5 {[%emt 0:09:14]} Qxd2+ {[%emt 0:00:27]} 16. Bxd2 {[%emt 0:00:07]} Bxd5 {[%emt 0:07:43]} 17. cxd5 {[%emt 0:02:00]} Nd4 {[%emt 0:00:22]} 18. O-O {[%emt 0:05:05]} Nxe2+ {[%emt 0:01:26]} 19. Nxe2 {[%emt 0:00:03]} Rdc8 {[%emt 0:00:05]} 20. Rxc8+ {[%emt 0:06:32]} Rxc8 {[%emt 0:01:06]} 21. Rc1 {[%emt 0:01:31]} Rxc1+ {[%emt 0:00:05]} 22. Nxc1 {[%emt 0:00:22]} Kf8 {[%emt 0:01:22]} 23. Kf1 {[%emt 0:02:24]} Ke8 {[%emt 0:00:04]} 24. Ke2 {[%emt 0:00:13]} Kd7 {[%emt 0:00:06]} 25. Nd3 {[%emt 0:05:55]} e6 {[%emt 0:08:23]} 26. dxe6+ {[%emt 0:00:58]} fxe6 {[%emt 0:01:10]} 27. e5 {[%emt 0:01:44]} Nd5 {[%emt 0:00:39]} 28. exd6 {[%emt 0:00:13]} Kxd6 {[%emt 0:00:04]} 29. Nf2 {[%emt 0:04:41]} h6 {[%emt 0:05:36]} 30. Ne4+ {[%emt 0:01:12]} Kc6 {[%emt 0:00:14]} 31. Kd3 {[%emt 0:00:23]} e5 {[%emt 0:01:59]} 32. g3 {[%emt 0:01:45]} Nc7 {[%emt 0:04:15]} 33. Nc3 {[%emt 0:00:41]} Ne6 {[%emt 0:00:14]} 34. Ke4 {[%emt 0:00:38]} Nc5+ {[%emt 0:00:02]} 35. Ke3 {[%emt 0:00:32]} Ne6 {[%emt 0:08:13]} 36. Ke4 {[%emt 0:01:25]} Kd6 {[%emt 0:00:15]} 37. Be3 $11 {[%emt 0:01:35]} Nd4 {[%emt 0:05:12]} 38. Bxd4 {[%emt 0:00:43]} exd4 {[%emt 0:00:09]} 39. Ne2 {[%emt 0:00:08]} Kc5 {[%emt 0:00:05]} 40. Kd3 {[%emt 0:00:13]} g5 {[%emt 0:02:04]} 41. h3 {[%emt 0:01:04]} Bf6 {[%emt 0:02:07]} 42. f4 {[%emt 0:00:25]} Kd5 {[%emt 0:00:12]} 43. f5 {[%emt 0:03:19]} b6 {[%emt 0:03:11]} 44. g4 {[%emt 0:00:40]} Be5 {[%emt 0:00:22]} 45. Ng1 {[%emt 0:00:25]} a5 {[%emt 0:05:51]} 46. Nf3 {[%emt 0:00:53]} Bf6 {[%emt 0:00:06]} 47. Nd2 {[%emt 0:00:08]} Bd8 {[%emt 0:09:03]} 48. Ne4 {[%emt 0:00:54]} Be7 {[%emt 0:00:54]} 49. Ng3 {[%emt 0:01:28]} Ke5 {[%emt 0:02:58]} 50. Ne2 {[%emt 0:04:24]} Bc5 {[%emt 0:00:51]} 51. Ng3 {[%emt 0:02:10]} Bf8 {[%emt 0:01:48]} 52. Ne2 {[%emt 0:00:26]} Bc5 {[%emt 0:00:07]} 53. Ng3 {[%emt 0:00:56]} Bf8 {[%emt 0:00:04]} 54. Ne2 {[%emt 0:01:01]} Bc5 {[%emt 0:00:07]} 1/2-1/2